bitfinex-derivatives/quotes_SOLF0:USTF0_20260105
["timestamp","ask_amount","ask_price","bid_price","bid_amount"]
[1767576726364,86.7,136.22,136.13,6.614]
[1767576726958,87.01332352,136.22,136.14,6.6135]
[1767576727149,0.31332352,136.23,136.12,106.5585782]
[1767576727348,0.31332352,136.23,136.12,189.6533]
[1767576727549,0.31332352,136.2,136.11,6.615]
[1767576727958,0.05082651,136.19,136.1,102.908]
[1767576728261,0.05082651,136.19,136.12,6.6144]
[1767576728464,0.31332352,136.21,136.12,6.6144]
[1767576730966,0.31332352,136.23,136.13,6.6139]
[1767576731657,0.31332352,136.23,136.14,6.6136]
[1767576731859,0.31332352,136.23,136.14,102.8809]
[1767576733663,0.31332352,136.23,136.15,6.6131]
[1767576736265,0.31332352,136.23,136.13,6.6139]
[1767576739058,0.31332352,136.22,136.11,93.375]
[1767576739263,0.31332352,136.22,136.11,6.615]
[1767576740564,0.31332352,136.2,136.11,6.615]
[1767576741267,0.31332352,136.19,136.11,6.615]
[1767576744356,0.31332352,136.19,136.12,6.6144]
[1767576744561,6.92352352,136.22,136.12,6.6144]
[1767576744962,0.31332352,136.21,136.12,6.6144]
[1767576745673,93.64252352,136.24,136.12,102.8965]
[1767576746074,93.64252352,136.24,136.13,189.6677]
[1767576747072,87.03332352,136.24,136.15,6.613]
[1767576747671,0.31332352,136.27,136.18,6.6116]
[1767576748871,0.31332352,136.26,136.18,6.6116]
[1767576750277,0.31332352,136.26,136.16,6.6125]
[1767576750278,0.31332352,136.25,136.16,6.6125]
[1767576751664,0.3392513,136.28,136.17,102.8587]
[1767576752474,0.3392513,136.28,136.16,102.8661]
[1767576752662,0.3392513,136.28,136.17,102.8578]
[1767576752862,87.0592513,136.3,136.18,102.8507]
[1767576753269,0.3392513,136.29,136.18,102.8507]
[1767576753774,0.3392513,136.29,136.19,6.6111]
[1767576756276,86.72,136.3,136.2,102.8361]
[1767576757671,86.72,136.3,136.22,6.6096]
[1767576760476,0.32837547,136.32,136.23,6.609]
[1767576761073,6.93307547,136.33,136.24,6.6087]
[1767576762375,0.32837547,136.33,136.24,6.6087]
[1767576762576,0.32837547,136.33,136.22,86.74]
[1767576762981,6.93317547,136.33,136.23,6.609]
[1767576763183,0.32837547,136.32,136.23,6.609]
[1767576763976,0.32837547,136.31,136.22,6.6097]
[1767576764381,0.32837547,136.31,136.2,86.74]
[1767576764581,6.93457547,136.3,136.2,93.3506]
[1767576764786,0.32837547,136.3,136.17,3.6652782]
[1767576764987,0.32837547,136.3,136.17,90.4052782]
[1767576765190,0.32837547,136.3,136.19,102.8431]
[1767576766583,1.81859253,136.3,136.21,8.10041706]
[1767576766884,1.81859253,136.3,136.21,1.49021706]
[1767576767786,0.32837547,136.29,136.21,1.49021706]
[1767576768487,6.93507547,136.29,136.21,1.49021706]
[1767576768881,6.6067,136.29,136.18,86.72]
[1767576769082,1.49021706,136.26,136.17,1.49021706]
[1767576769282,1.81859253,136.26,136.17,1.49021706]
[1767576769490,88.17021706,136.28,136.19,1.49021706]
[1767576769686,88.49859253,136.28,136.19,1.49021706]
[1767576770193,95.10569253,136.28,136.18,6.6116]
[1767576770380,1.49021706,136.26,136.18,6.6116]
[1767576770693,1.81859253,136.26,136.18,6.6116]
[1767576771589,1.81859253,136.26,136.16,8.10271706]
[1767576772589,8.42669253,136.26,136.16,8.10271706]
[1767576773093,8.42669253,136.26,136.17,6.6121]
[1767576773286,0.32837547,136.24,136.16,1.49021706]
[1767576773886,1.49021706,136.26,136.18,1.49021706]
[1767576774288,6.93607547,136.27,136.18,1.49021706]
[1767576774592,8.42629253,136.27,136.18,1.49021706]
[1767576774996,1.81859253,136.25,136.15,86.72]
[1767576775201,1.81859253,136.25,136.16,1.49021706]
[1767576775399,1.81859253,136.25,136.15,86.72]
[1767576775692,1.81859253,136.25,136.16,1.49021706]
[1767576776288,0.32837547,136.24,136.16,1.49021706]
[1767576777902,8.42639253,136.27,136.17,6.6122]
[1767576778199,0.32837547,136.26,136.17,6.6122]
[1767576779298,0.32837547,136.26,136.18,6.6116]
[1767576780203,86.68,136.28,136.19,6.6111]
[1767576780397,86.68,136.28,136.2,1.49021706]
[1767576780707,86.68,136.28,136.19,189.5837]
[1767576781204,0.31414476,136.27,136.17,105.18488796]
[1767576781402,0.31414476,136.27,136.17,191.92488796]
[1767576782292,86.68,136.28,136.19,105.17258796]
[1767576782602,0.31414476,136.24,136.14,86.74]
[1767576783191,0.31414476,136.24,136.16,6.6126]
[1767576783796,0.31414476,136.24,136.13,102.8867]
[1767576783797,0.31414476,136.23,136.15,86.74]
[1767576784605,0.31414476,136.22,136.13,6.614]
[1767576784798,0.31414476,136.22,136.13,93.354]
[1767576785300,0.31414476,136.2,136.12,86.74]
[1767576785496,0.31414476,136.2,136.11,6.6149]
[1767576785904,0.31414476,136.2,136.11,86.74]
[1767576786106,0.31414476,136.18,136.1,103.73786687]
[1767576788005,0.31414476,136.18,136.09,93.356]
[1767576793904,0.31414476,136.18,136.09,6.616]
[1767576794112,0.31414476,136.18,136.09,93.376]
[1767576796309,0.31414476,136.2,136.1,6.6155]
[1767576796806,0.31414476,136.18,136.08,6.6164]
[1767576797015,0.31414476,136.18,136.09,86.78]
[1767576797203,2.32888796,136.19,136.09,86.78]
[1767576797404,8.94048796,136.19,136.09,93.3959]
[1767576797604,6.92574476,136.19,136.09,93.3959]
[1767576797806,0.31414476,136.19,136.09,93.3959]
[1767576798613,6.6106,136.21,136.1,102.9104]
[1767576798913,6.6106,136.21,136.1,105.23928796]
[1767576798914,6.92474476,136.21,136.1,105.23928796]
[1767576799114,0.31414476,136.21,136.12,6.6144]
[1767576799904,0.31414476,136.24,136.12,105.22198796]
[1767576800214,0.31414476,136.24,136.14,2.32888796]
[1767576800411,0.31414476,136.24,136.15,86.78]
[1767576800917,0.31414476,136.25,136.16,6.6126]
[1767576801118,0.31414476,136.25,136.16,93.3926]
[1767576801809,0.31414476,136.25,136.16,6.6126]
[1767576802016,0.31414476,136.25,136.17,6.612]
[1767576802314,0.31414476,136.28,136.18,2.32888796]
[1767576802529,0.31414476,136.28,136.19,6.6111]
[1767576803013,0.31414476,136.28,136.19,93.3911]
[1767576804215,0.31414476,136.28,136.19,6.6111]
[1767576804411,0.31414476,136.28,136.19,93.3911]
[1767576804807,0.31414476,136.28,136.18,2.32888796]
[1767576804808,0.31414476,136.27,136.18,86.78]
[1767576805522,0.31414476,136.26,136.18,86.78]
[1767576806407,0.31414476,136.26,136.17,6.6122]
[1767576806823,0.31414476,136.26,136.17,93.3722]
[1767576807309,0.31414476,136.26,136.17,6.6122]
[1767576807506,0.31414476,136.26,136.17,93.3722]
[1767576808628,0.31414476,136.25,136.15,8.94198796]
[1767576808921,0.31414476,136.25,136.15,89.08888796]
[1767576809319,0.31414476,136.25,136.16,6.6126]
[1767576809521,6.6078,136.27,136.16,102.8663]
[1767576809729,6.6078,136.27,136.17,2.32888796]
[1767576809914,6.92194476,136.27,136.17,2.32888796]
[1767576810110,0.31414476,136.27,136.17,2.32888796]
[1767576810315,0.31414476,136.3,136.18,102.8494]
[1767576810520,0.31414476,136.3,136.19,86.76]
[1767576811725,0.32037766,136.29,136.19,189.5993]
[1767576812616,0.05007931,136.25,136.19,189.5993]
[1767576812915,0.32037766,136.29,136.2,2.32888796]
[1767576813120,0.32037766,136.29,136.21,0.04654033]
[1767576813318,0.32037766,136.32,136.21,102.87224033]
[1767576813514,0.32037766,136.32,136.22,2.32888796]
[1767576814117,0.32037766,136.32,136.24,2.32888796]
[1767576814315,0.32037766,136.32,136.26,0.05503652]
[1767576815523,86.72,136.35,136.26,0.05503652]
[1767576815727,93.65050113,136.35,136.26,0.05503652]
[1767576815919,93.65050113,136.35,136.24,2.32888796]
[1767576816322,93.65050113,136.35,136.29,0.0550567]
[1767576819728,0.32670113,136.34,136.29,0.0550567]
[1767576821926,6.6028,136.37,136.29,0.0550567]
[1767576821927,6.92950113,136.37,136.29,0.0550567]
[1767576822322,0.32670113,136.37,136.29,0.0550567]
[1767576822727,86.68,136.39,136.29,0.0550567]
[1767576822932,87.00670113,136.39,136.29,0.0550567]
[1767576823132,87.00670113,136.39,136.3,6.6057]
[1767576823732,87.00670113,136.39,136.33,0.04982717]
[1767576829233,0.32670113,136.41,136.33,0.04982717]
[1767576829628,0.32670113,136.41,136.31,102.7504]
[1767576830032,0.32670113,136.41,136.36,0.05089474]
[1767576831028,93.2599,136.43,136.36,0.05089474]
[1767576831029,86.66,136.43,136.36,0.05089474]
[1767576831232,0.32670113,136.44,136.36,0.05089474]
[1767576832538,0.32670113,136.44,136.36,6.65369474]
[1767576834934,0.32670113,136.47,136.38,6.6019]
[1767576835337,0.32670113,136.46,136.37,86.68]
[1767576835530,0.32670113,136.46,136.36,93.2828]
[1767576835741,0.32670113,136.46,136.41,0.0514428]
[1767576837336,86.96670113,136.48,136.41,0.0514428]
[1767576838440,8.92448796,136.52,136.41,0.0514428]
[1767576838751,0.32670113,136.5,136.41,0.0514428]
[1767576838941,0.32670113,136.5,136.4,2.32888796]
[1767576839342,0.32670113,136.5,136.44,0.04897852]
[1767576841646,0.31250683,136.49,136.44,0.04897852]
[1767576841845,0.31250683,136.49,136.39,6.6014]
[1767576842645,1.79865576,136.49,136.4,1.48614893]
[1767576842847,0.31250683,136.49,136.4,8.08694893]
[1767576843144,0.31250683,136.49,136.4,1.48614893]
[1767576843453,0.31250683,136.51,136.42,1.48614893]
[1767576843843,0.31250683,136.51,136.42,8.08594893]
[1767576844043,0.31250683,136.47,136.38,1.48614893]
[1767576844244,1.48614893,136.49,136.4,1.48614893]
[1767576844449,0.31250683,136.5,136.4,1.48614893]
[1767576844645,1.79865576,136.49,136.4,1.48614893]
[1767576844951,1.79865576,136.49,136.4,88.10614893]
[1767576845149,0.31250683,136.49,136.42,1.48614893]
[1767576845753,0.31250683,136.52,136.42,1.48614893]
[1767576846055,0.31250683,136.52,136.44,1.48614893]
[1767576846348,6.90660683,136.55,136.46,1.48614893]
[1767576846552,0.31250683,136.55,136.47,6.5975]
[1767576847146,0.31250683,136.55,136.48,1.48614893]
[1767576847350,86.89250683,136.57,136.48,1.48614893]
[1767576847849,0.31250683,136.57,136.48,1.48614893]
[1767576848555,0.31250683,136.57,136.49,6.5965]
[1767576848751,1.48614893,136.58,136.5,1.48614893]
[1767576848958,0.31250683,136.59,136.5,1.48614893]
[1767576849453,0.31250683,136.59,136.51,1.48614893]
[1767576849954,1.79865576,136.59,136.5,86.6]
[1767576850264,1.79865576,136.59,136.5,88.08614893]
[1767576850756,0.31250683,136.56,136.48,86.6]
[1767576851062,1.79865576,136.55,136.46,88.08614893]
[1767576851449,1.79865576,136.55,136.43,102.6612]
[1767576851450,1.79865576,136.53,136.45,6.5986]
[1767576851651,0.31250683,136.53,136.43,86.6]
[1767576851847,1.48614893,136.52,136.43,88.08614893]
[1767576852250,1.48614893,136.52,136.44,6.599]
[1767576852457,0.31250683,136.53,136.44,6.599]
[1767576853852,0.31250683,136.51,136.42,6.6001]
[1767576854859,0.31250683,136.5,136.42,6.6001]
[1767576855458,0.31250683,136.5,136.4,93.181]
[1767576855650,0.31250683,136.5,136.4,6.601]
[1767576855851,0.31250683,136.49,136.38,6.602]
[1767576856850,0.31250683,136.48,136.38,6.602]
[1767576857052,86.85250683,136.51,136.4,102.6829]
[1767576857766,86.85250683,136.51,136.42,6.5999]
[1767576859062,0.31250683,136.5,136.4,6.6011]
[1767576859462,86.54,136.51,136.41,102.6772]
[1767576860254,0.31250683,136.5,136.41,102.6772]
[1767576860466,0.31250683,136.5,136.39,86.58]
[1767576861555,0.31250683,136.5,136.4,102.6849]
[1767576861761,0.31250683,136.5,136.41,102.6763]
[1767576862467,86.54,136.51,136.41,102.6763]
[1767576862663,106.21231848,136.56,136.41,102.6763]
[1767576862664,0.31250683,136.54,136.42,102.67]
[1767576863466,6.90710683,136.54,136.44,6.5989]
[1767576863660,0.31250683,136.53,136.44,6.5989]
[1767576864662,0.31250683,136.52,136.44,6.5989]
[1767576868471,0.31250683,136.51,136.42,6.6]
[1767576868968,0.31250683,136.51,136.42,102.6687]
[1767576870069,0.31250683,136.53,136.42,102.6687]
[1767576870566,0.31250683,136.53,136.44,6.599]
[1767576871562,0.31225865,136.52,136.44,6.599]
[1767576872774,93.44645865,136.55,136.44,6.599]
[1767576873070,0.31225865,136.54,136.44,6.599]
[1767576873368,86.54,136.55,136.45,189.2265]
[1767576873572,6.90535865,136.57,136.46,102.639]
[1767576874573,6.90535865,136.57,136.48,6.5971]
[1767576875973,0.31225865,136.57,136.48,6.5971]
[1767576877374,0.31225865,136.57,136.49,6.5966]
[1767576877776,93.1323,136.59,136.49,6.5966]
[1767576877971,93.45601346,136.59,136.49,6.5966]
[1767576878474,93.45601346,136.59,136.51,1.48381773]
[1767576878980,0.32371346,136.57,136.49,8.08041773]
[1767576879164,0.32371346,136.57,136.49,1.48381773]
[1767576879679,0.32371346,136.55,136.47,1.48381773]
[1767576880270,0.32371346,136.55,136.47,8.08141773]
[1767576880469,6.5932,136.57,136.47,8.08141773]
[1767576880470,6.5932,136.57,136.47,6.5976]
[1767576880777,0.32371346,136.58,136.47,102.6294]
[1767576881580,0.32371346,136.58,136.49,6.5964]
[1767576882872,0.32371346,136.58,136.46,198.09227409]
[1767576883078,6.91671346,136.57,136.47,6.5975]
[1767576883278,0.32371346,136.56,136.47,6.5975]
[1767576884279,6.91751346,136.56,136.47,6.5975]
[1767576885678,6.5928,136.58,136.46,198.09367409]
[1767576885879,6.5928,136.58,136.47,8.89807409]
[1767576886080,6.91651346,136.58,136.47,8.89807409]
[1767576886474,0.32371346,136.56,136.46,8.89807409]
[1767576886680,0.32371346,136.56,136.46,86.56]
[1767576887576,6.5939,136.55,136.47,6.5977]
[1767576888081,6.5932,136.57,136.49,6.5966]
[1767576889269,6.91691346,136.57,136.47,6.5975]
[1767576889480,6.91691346,136.57,136.46,198.09297409]
[1767576889776,6.91691346,136.57,136.47,8.89807409]
[1767576890373,6.91691346,136.57,136.49,6.5967]
[1767576890579,0.32371346,136.57,136.49,6.5967]
[1767576895077,6.91691346,136.57,136.47,15.49547409]
[1767576895295,0.32371346,136.56,136.47,15.49547409]
[1767576895474,0.32371346,136.56,136.47,6.5974]
[1767576896285,6.91731346,136.56,136.47,6.5974]
[1767576896480,6.91731346,136.56,136.46,95.45807409]
[1767576896883,6.91731346,136.56,136.46,86.56]
[1767576897292,6.91731346,136.56,136.47,6.5976]
[1767576898686,6.91731346,136.56,136.48,6.5971]
[1767576901092,0.32371346,136.56,136.48,6.5971]
[1767576901298,86.86869304,136.59,136.51,1.48445825]
[1767576901794,86.86869304,136.59,136.51,8.08005825]
[1767576901992,0.32869304,136.59,136.51,8.08005825]
[1767576902602,0.32869304,136.59,136.51,6.5956]
[1767576903708,0.32869304,136.58,136.49,6.5965]
[1767576904705,0.32869304,136.57,136.48,95.45807409]
[1767576904897,2.64689618,136.57,136.48,86.56]
[1767576905104,0.32869304,136.56,136.48,86.56]
[1767576905608,6.5941,136.55,136.48,86.56]
[1767576906008,0.32869304,136.54,136.45,8.89807409]
[1767576906306,0.32869304,136.54,136.44,8.89807409]
[1767576906513,6.92379304,136.53,136.44,8.89807409]
[1767576907898,6.92279304,136.55,136.45,8.89807409]
[1767576908106,86.82869304,136.57,136.46,8.89807409]
[1767576908306,86.82869304,136.57,136.47,8.89807409]
[1767576908911,86.5,136.57,136.48,8.89807409]
[1767576909212,86.5,136.57,136.49,8.89807409]
[1767576909411,86.5,136.57,136.49,11.21627723]
[1767576909714,0.32869304,136.6,136.5,15.49417409]
[1767576911308,6.91889304,136.63,136.53,6.5946]
[1767576911712,0.32869304,136.63,136.53,6.5946]
[1767576912015,0.32869304,136.63,136.52,8.89807409]
[1767576912209,0.32869304,136.61,136.51,8.89807409]
[1767576912415,0.32869304,136.61,136.5,8.89807409]
[1767576912810,0.32869304,136.61,136.52,6.5951]
[1767576913010,0.32869304,136.61,136.52,15.49317409]
[1767576913819,0.32869304,136.61,136.53,15.49267409]
[1767576915816,0.32869304,136.61,136.53,8.89807409]
[1767576916018,0.32869304,136.61,136.52,8.89807409]
[1767576917014,0.32869304,136.61,136.52,15.49317409]
[1767576918017,0.32869304,136.61,136.53,8.89807409]
[1767576918823,0.32869304,136.61,136.52,15.49317409]
[1767576920124,0.32869304,136.61,136.52,6.5951]
[1767576920517,0.32869304,136.61,136.52,15.49317409]
[1767576920720,0.32869304,136.61,136.53,6.5946]
[1767576921119,0.04902236,136.58,136.53,6.5946]
[1767576921924,6.5907,136.62,136.53,6.5946]
[1767576922319,6.5907,136.62,136.54,0.05267769]
[1767576923022,0.32869304,136.66,136.54,102.62987769]
[1767576923217,0.32869304,136.66,136.54,111.52795178]
[1767576923420,0.32869304,136.66,136.54,111.47527409]
[1767576923819,6.91799304,136.65,136.59,0.04692664]
[1767576927230,0.32869304,136.64,136.59,0.04692664]
[1767576928116,0.32869304,136.66,136.59,0.04692664]
[1767576933023,6.5883,136.67,136.59,0.04692664]
[1767576933224,6.92554401,136.67,136.59,0.04692664]
[1767576933424,0.33724401,136.66,136.59,0.04692664]
[1767576934233,6.92474401,136.69,136.59,6.63872664]
[1767576934743,6.92474401,136.69,136.6,6.5912]
[1767576935030,6.92474401,136.69,136.63,0.0522077]
[1767576935234,0.33724401,136.68,136.63,0.0522077]
[1767576935929,6.92504401,136.68,136.63,0.0522077]
[1767576937838,0.31264302,136.66,136.56,113.77313192]
[1767576938133,0.31264302,136.66,136.58,86.5]
[1767576939032,0.31264302,136.66,136.58,93.0923]
[1767576940230,0.31264302,136.66,136.58,6.5923]
[1767576940434,6.90144302,136.66,136.58,6.5923]
[1767576941935,0.31264302,136.64,136.56,6.5932]
[1767576943733,0.31264302,136.63,136.55,86.5]
[1767576944048,0.31264302,136.63,136.54,93.0741]
[1767576944241,0.31264302,136.63,136.54,86.48]
[1767576945529,0.31264302,136.63,136.55,6.5938]
[1767576945928,0.31264302,136.63,136.54,86.48]
[1767576946629,0.31264302,136.66,136.54,191.37265783]
[1767576947226,0.31264302,136.66,136.54,200.27073192]
[1767576947436,0.31264302,136.65,136.57,6.5928]
[1767576948945,0.31264302,136.65,136.54,200.27073192]
[1767576948946,0.31264302,136.66,136.56,104.87795783]
[1767576949440,5.87546575,136.68,136.59,6.5917]
[1767576949630,6.5883,136.67,136.56,104.87795783]
[1767576949830,102.4754,136.68,136.57,86.5]
[1767576950042,2.31565783,136.67,136.57,93.0926]
[1767576951233,6.5884,136.67,136.58,6.5923]
[1767576951430,0.31264302,136.66,136.58,6.5923]
[1767576951636,0.31264302,136.66,136.57,86.5]
[1767576952439,0.31264302,136.66,136.57,95.39807409]
[1767576952744,0.31264302,136.66,136.59,6.5917]
[1767576953736,0.31264302,136.72,136.62,2.31565783]
[1767576953933,0.31264302,136.72,136.63,86.5]
[1767576954337,0.31264302,136.72,136.64,8.90495783]
[1767576954636,0.31264302,136.72,136.63,86.5]
[1767576954836,0.31264302,136.72,136.63,95.39807409]
[1767576955133,0.31264302,136.75,136.64,102.5013]
[1767576955332,0.31264302,136.75,136.65,102.4966]
[1767576956240,88.77565783,136.78,136.67,6.5878]
[1767576956241,86.46,136.78,136.67,6.5878]
[1767576956436,0.31264302,136.77,136.67,6.5878]
[1767576956945,6.89664302,136.76,136.67,6.5878]
[1767576957141,0.31264302,136.8,136.69,102.4671]
[1767576957332,0.31264302,136.8,136.68,88.79565783]
[1767576957333,0.31264302,136.8,136.7,2.31565783]
[1767576957739,0.31264302,136.77,136.66,86.48]
[1767576958135,0.31264302,136.77,136.68,102.4737]
[1767576958339,0.31264302,136.8,136.69,2.31565783]
[1767576958541,0.31264302,136.8,136.69,104.78245783]
[1767576959745,0.31264302,136.8,136.7,6.5864]
[1767576959944,0.31264302,136.8,136.71,86.46]
[1767576960243,1.58559642,136.8,136.68,102.4739]
[1767576960446,0.31264302,136.8,136.69,2.31565783]
[1767576960641,0.31264302,136.8,136.69,104.78235783]
[1767576960843,102.69414043,136.82,136.7,88.77565783]
[1767576961146,0.31984043,136.85,136.72,104.76065783]
[1767576961339,191.09735783,136.86,136.72,104.76065783]
[1767576961340,0.31984043,136.83,136.72,2.31565783]
[1767576962145,6.90064043,136.83,136.72,104.76055783]
[1767576962444,6.90034043,136.83,136.72,2.31565783]
[1767576962649,6.90034043,136.83,136.69,102.4659]
[1767576962650,0.31984043,136.82,136.69,102.4659]
[1767576962945,0.31984043,136.82,136.72,1.47874933]
[1767576963146,0.31984043,136.82,136.7,86.46]
[1767576963345,0.31984043,136.81,136.72,1.47874933]
[1767576963750,0.31984043,136.78,136.69,1.47874933]
[1767576963951,1.79858976,136.78,136.69,1.47874933]
[1767576964154,0.31984043,136.77,136.69,1.47874933]
[1767576964350,1.47874933,136.76,136.68,86.44]
[1767576964647,0.31984043,136.77,136.68,86.44]
[1767576964852,0.31984043,136.77,136.68,93.0273]
[1767576965657,0.31984043,136.77,136.67,86.44]
[1767576966338,86.71984043,136.8,136.68,102.4706]
[1767576966644,0.31984043,136.79,136.68,102.4706]
[1767576967345,0.31984043,136.79,136.69,6.5869]
[1767576970049,0.31984043,136.77,136.67,6.5881]
[1767576970252,0.31984043,136.77,136.66,86.42]
[1767576970448,0.31984043,136.74,136.62,102.5167]
[1767576970654,0.04839921,136.73,136.63,86.42]
[1767576971052,0.31984043,136.73,136.63,93.0098]
[1767576971455,0.31984043,136.73,136.63,86.42]
[1767576972757,0.31984043,136.73,136.63,188.9275]
[1767576973258,0.31984043,136.73,136.63,86.42]
[1767576974350,0.31984043,136.73,136.63,188.9286]
[1767576975558,0.31984043,136.73,136.65,6.5889]
[1767576976862,0.31984043,136.76,136.66,6.5883]
[1767576977059,0.31984043,136.76,136.67,86.44]
[1767576978766,6.90384043,136.76,136.67,86.44]
[1767576979355,0.31984043,136.74,136.63,109.0982]
[1767576979555,0.31984043,136.74,136.64,86.44]
[1767576980652,6.90484043,136.74,136.64,93.0293]
[1767576981765,0.31984043,136.72,136.62,6.5904]
[1767576981962,0.31984043,136.72,136.63,86.44]
[1767576982362,0.31984043,136.72,136.63,93.0297]
[1767576982562,0.31984043,136.72,136.63,86.44]
[1767576982966,6.90434043,136.75,136.63,86.44]
[1767576983271,0.31984043,136.74,136.64,6.5893]
[1767576983470,0.31984043,136.74,136.64,102.5037]
[1767576983968,6.90384043,136.76,136.65,102.4954]
[1767576984568,0.31984043,136.75,136.64,102.5037]
[1767576984969,0.31984043,136.75,136.65,102.495]
[1767576985372,0.31984043,136.75,136.67,6.5878]
[1767576985571,0.31984043,136.75,136.67,93.0278]
[1767576986475,0.31984043,136.75,136.67,94.5080867]
[1767576987272,0.31984043,136.75,136.68,1.4802867]
[1767576987469,1.80012713,136.78,136.69,6.5869]
[1767576987776,0.31984043,136.78,136.7,1.4802867]
[1767576988177,0.31984043,136.78,136.69,6.5869]
[1767576988376,0.31984043,136.78,136.7,8.0666867]
[1767576988681,0.31984043,136.77,136.65,102.495]
[1767576988976,1.80012713,136.77,136.68,87.9202867]
[1767576989172,0.31984043,136.76,136.68,87.9202867]
[1767576989375,0.31984043,136.79,136.68,87.9202867]
[1767576989676,188.7904,136.8,136.68,87.9202867]
[1767576989677,1.80012713,136.78,136.68,87.9202867]
[1767576990171,0.31984043,136.77,136.68,94.5075867]
[1767576990364,0.31984043,136.77,136.68,87.9202867]
[1767576990865,0.33160437,136.76,136.66,6.5884]
[1767576991069,0.33160437,136.74,136.66,6.5884]
[1767576991272,1.4802867,136.73,136.65,86.44]
[1767576991576,1.4802867,136.76,136.66,1.4802867]
[1767576991873,1.81189107,136.76,136.66,1.4802867]
[1767576992066,0.33160437,136.76,136.66,1.4802867]
[1767576992665,0.33160437,136.76,136.66,8.0684867]
[1767576994666,0.33160437,136.76,136.68,1.4802867]
[1767576994867,1.81189107,136.78,136.68,1.4802867]
[1767576995268,1.81189107,136.78,136.69,6.5871]
[1767576995474,0.33160437,136.77,136.68,1.4802867]
[1767576995980,6.5831,136.78,136.7,1.4802867]
[1767576996171,1.78702875,136.8,136.7,94.4865867]
[1767576996372,1.78702875,136.8,136.72,1.4802867]
[1767576996577,0.30674205,136.8,136.72,1.4802867]
[1767576996985,0.30674205,136.8,136.7,188.8731]
[1767576997174,0.30674205,136.8,136.73,1.4802867]
[1767576997972,0.30674205,136.8,136.71,8.0661867]
[1767576998181,6.88884205,136.8,136.71,8.0661867]
[1767576999175,86.4,136.81,136.73,8.0652867]
[1767576999478,86.4,136.81,136.71,1.4802867]
[1767576999479,1.78702875,136.8,136.71,1.4802867]
[1767576999676,0.30674205,136.79,136.71,1.4802867]
[1767576999881,6.5826,136.79,136.7,86.42]
[1767577000069,1.4802867,136.78,136.7,86.42]
[1767577000274,1.4802867,136.78,136.69,8.93286442]
[1767577000479,1.4802867,136.74,136.66,8.93286442]
[1767577000682,1.4802867,136.74,136.64,95.35286442]
[1767577001079,1.4802867,136.72,136.63,8.93286442]
[1767577001384,1.4802867,136.72,136.61,1.4802867]
[1767577001385,1.4802867,136.7,136.61,1.4802867]
[1767577001782,1.4802867,136.7,136.61,8.0710867]
[1767577002474,6.89334205,136.71,136.61,6.5908]
[1767577002674,0.30674205,136.71,136.61,6.5908]
[1767577003275,0.30674205,136.74,136.62,102.5177]
[1767577003475,0.30674205,136.74,136.62,111.45056442]
[1767577004484,0.30674205,136.74,136.64,6.5892]
[1767577004679,0.30674205,136.74,136.63,8.93286442]
[1767577004886,0.30674205,136.73,136.62,8.93286442]
[1767577005075,0.30674205,136.73,136.61,86.42]
[1767577005778,6.5861,136.72,136.62,6.5904]
[1767577005983,0.30674205,136.7,136.58,8.93286442]
[1767577006179,0.30674205,136.7,136.57,197.92766442]
[1767577006379,0.30674205,136.7,136.57,95.37286442]
[1767577006575,93.29414205,136.69,136.57,197.92656442]
[1767577007788,93.29414205,136.69,136.59,6.5917]
[1767577008485,86.70674205,136.69,136.6,6.5912]
[1767577010287,86.70674205,136.69,136.6,15.52406442]
[1767577011190,86.70674205,136.69,136.6,6.5912]
[1767577011391,86.70674205,136.69,136.6,15.52406442]
[1767577011787,86.70674205,136.69,136.6,6.5912]
[1767577011990,0.30674205,136.68,136.6,6.5912]
[1767577013394,86.4,136.69,136.61,6.5908]
[1767577014684,0.30674205,136.68,136.61,6.5908]
[1767577015497,0.30674205,136.68,136.59,93.0518]
[1767577016097,0.30674205,136.68,136.6,6.5913]
[1767577016297,86.4,136.69,136.6,102.5347]
[1767577017500,86.70674205,136.69,136.61,6.5907]
[1767577018301,0.30674205,136.68,136.59,93.0517]
[1767577018796,0.30674205,136.68,136.59,86.46]
[1767577019192,0.30674205,136.68,136.6,6.5911]
[1767577020994,0.3395463,136.67,136.59,86.46]
[1767577021198,0.3395463,136.67,136.58,6.5922]
[1767577021898,0.3395463,136.65,136.56,86.46]
[1767577022091,0.3395463,136.68,136.57,102.5571]
[1767577022296,0.3395463,136.68,136.59,102.5426]
[1767577022486,0.3395463,136.68,136.59,6.5918]